bitfinex-derivatives/quotes_BTCF0:USTF0_20251009
["timestamp","ask_amount","ask_price","bid_price","bid_amount"]
[1760028801062,0.36086156,120510.0,120500.0,3.36277542]
[1760028801258,6.156e-05,120510.0,120500.0,3.36277542]
[1760028801458,0.36086156,120510.0,120500.0,3.36257542]
[1760028801664,6.156e-05,120510.0,120500.0,3.83595621]
[1760028801963,0.39289053,120540.0,120530.0,0.09696]
[1760028802267,0.47289053,120540.0,120530.0,2.13109]
[1760028802766,0.70113053,120540.0,120530.0,3.32075649]
[1760028802958,0.66294043,120540.0,120530.0,2.52151649]
[1760028803161,0.66394043,120540.0,120530.0,3.35666649]
[1760028803661,0.66494043,120540.0,120530.0,3.35646649]
[1760028803864,0.03414043,120540.0,120530.0,3.35646649]
[1760028804063,0.3928499,120540.0,120530.0,2.55742649]
[1760028804260,0.3928499,120540.0,120530.0,3.35634649]
[1760028804566,0.42494043,120540.0,120530.0,0.48738649]
[1760028804761,0.48309043,120540.0,120530.0,3.35634649]
[1760028804961,0.42494043,120540.0,120530.0,2.55770649]
[1760028805161,0.42494043,120540.0,120530.0,3.35622649]
[1760028805463,0.3928499,120540.0,120530.0,3.35622649]
[1760028805656,0.3918499,120540.0,120530.0,3.35622649]
[1760028805861,0.3928499,120540.0,120530.0,3.75622649]
[1760028806165,0.3628499,120540.0,120530.0,3.75622649]
[1760028806364,0.0020499,120540.0,120530.0,3.75622649]
[1760028806565,0.3728499,120540.0,120530.0,2.95770649]
[1760028806767,0.40494043,120540.0,120530.0,2.95770649]
[1760028806966,0.40494043,120540.0,120530.0,3.75570649]
[1760028807268,0.40494043,120540.0,120530.0,3.75550649]
[1760028807669,0.40494043,120540.0,120530.0,3.75574649]
[1760028809066,0.39494043,120540.0,120530.0,0.88738649]
[1760028809273,0.39494043,120540.0,120530.0,3.75494649]
[1760028809767,0.39494043,120540.0,120530.0,3.75502649]
[1760028809974,0.3628499,120540.0,120530.0,3.75502649]
[1760028810168,0.39494043,120540.0,120530.0,3.75478649]
[1760028810363,0.39494043,120540.0,120530.0,3.36436]
[1760028810671,0.39494043,120540.0,120530.0,3.75454649]
[1760028811065,0.03414043,120540.0,120530.0,3.75454649]
[1760028811264,0.03414043,120540.0,120530.0,3.04096009]
[1760028811470,0.3608,120570.0,120560.0,0.03591]
[1760028811663,0.6308,120570.0,120560.0,0.48538649]
[1760028811866,0.6308,120570.0,120560.0,1.28150649]
[1760028812472,0.6328,120570.0,120560.0,1.28150649]
[1760028812666,0.69295,120570.0,120560.0,0.48538649]
[1760028812866,0.69295,120570.0,120560.0,1.28342649]
[1760028813067,0.69295,120570.0,120560.0,1.28306649]
[1760028813276,0.69195,120570.0,120560.0,1.28306649]
[1760028813771,0.273,120570.0,120560.0,1.28294649]
[1760028813966,0.273,120570.0,120560.0,1.72665129]
[1760028814166,0.69095,120570.0,120560.0,0.55357103]
[1760028814569,0.05815,120550.0,120540.0,2.16772]
[1760028814768,0.33815,120550.0,120540.0,2.55814649]
[1760028815069,0.07,120550.0,120540.0,3.35370649]
[1760028815273,0.3608,120570.0,120560.0,0.03591]
[1760028815469,0.72995,120570.0,120560.0,1.28294649]
[1760028815662,0.36915,120570.0,120560.0,0.48738649]
[1760028815869,0.36915,120570.0,120450.0,0.09043271]
[1760028815870,0.03162,120500.0,120450.0,0.09043271]
[1760028816074,0.1146004,120450.0,120440.0,0.008188]
[1760028816263,0.82502689,120450.0,120440.0,1.743028]
[1760028816567,1.54662689,120450.0,120440.0,1.508188]
[1760028816778,1.94662689,120450.0,120440.0,0.82208]
[1760028816966,0.0829942,120430.0,120420.0,0.04684571]
[1760028817171,0.80465507,120430.0,120420.0,0.86876571]
[1760028817370,1.20465507,120430.0,120420.0,0.86868571]
[1760028817572,0.72166087,120430.0,120420.0,0.91040524]
[1760028817774,1.12166087,120430.0,120420.0,2.41040524]
[1760028818072,1.12166087,120430.0,120420.0,1.58868524]
[1760028818270,0.72166087,120430.0,120420.0,1.31769095]
[1760028818479,0.72166087,120430.0,120420.0,1.31869095]
[1760028818671,0.72166087,120430.0,120420.0,2.81901095]
[1760028818869,0.72166087,120430.0,120420.0,2.81981095]
[1760028819070,0.72166087,120430.0,120420.0,2.82466744]
[1760028819274,0.72166087,120430.0,120420.0,3.25552095]
[1760028819474,0.72166087,120430.0,120420.0,2.03424095]
[1760028819674,0.72166087,120430.0,120420.0,4.92668095]
[1760028819873,0.72166087,120430.0,120420.0,4.10552095]
[1760028820185,0.72166087,120430.0,120420.0,5.31694744]
[1760028820475,0.72166087,120430.0,120420.0,5.32632095]
[1760028820674,0.72166087,120430.0,120420.0,5.32620095]
[1760028821276,0.72166087,120430.0,120420.0,5.71662744]
[1760028821581,0.72166087,120430.0,120420.0,5.71638744]
[1760028821782,0.72166087,120430.0,120420.0,5.32596095]
[1760028821971,0.72166087,120430.0,120420.0,4.50576095]
[1760028822175,0.72166087,120430.0,120420.0,5.71646744]
[1760028822376,0.72166087,120430.0,120420.0,5.27462791]
[1760028822877,0.72166087,120430.0,120420.0,5.27382791]
[1760028823277,0.72166087,120430.0,120420.0,5.27346791]
[1760028823478,0.72166087,120430.0,120420.0,0.49833095]
[1760028823783,0.72166087,120430.0,120420.0,1.31749095]
[1760028823982,1.12166087,120430.0,120420.0,0.86840571]
[1760028824178,0.72166087,120430.0,120420.0,0.12724524]
[1760028824379,0.72166087,120430.0,120420.0,1.35405095]
[1760028824678,0.72166087,120430.0,120420.0,0.92531744]
[1760028824872,0.72166087,120430.0,120420.0,1.32531744]
[1760028825078,0.72166087,120430.0,120420.0,2.14447744]
[1760028825376,0.72166087,120430.0,120420.0,2.22747854]
[1760028825681,0.72166087,120430.0,120420.0,1.40831854]
[1760028825871,0.79574087,120430.0,120420.0,0.60474095]
[1760028826582,0.79574087,120430.0,120420.0,1.42342095]
[1760028827184,0.72166087,120430.0,120420.0,3.49538095]
[1760028827582,0.72166087,120430.0,120420.0,3.96832854]
[1760028827883,0.72166087,120430.0,120420.0,3.15028854]
[1760028828083,0.72166087,120430.0,120420.0,3.55028854]
[1760028828274,0.72166087,120430.0,120420.0,0.60916095]
[1760028828479,0.72166087,120430.0,120420.0,1.42872095]
[1760028828878,0.72166087,120430.0,120420.0,1.51172205]
[1760028829082,0.72166087,120430.0,120420.0,3.89134744]
[1760028829279,0.72166087,120430.0,120420.0,3.47190744]
[1760028829480,0.72166087,120430.0,120420.0,3.50092095]
[1760028829680,0.72166087,120430.0,120420.0,3.89134744]
[1760028830279,0.72166087,120430.0,120420.0,4.37434854]
[1760028830488,0.72166087,120430.0,120420.0,3.55490854]
[1760028830676,0.72166087,120430.0,120420.0,4.37394854]
[1760028830881,0.3608,120440.0,120430.0,0.1938242]
[1760028831081,0.3608,120440.0,120430.0,1.8108964]
[1760028831277,0.3608,120440.0,120430.0,1.03373593]
[1760028831684,0.3608,120440.0,120430.0,3.10613593]
[1760028831884,0.3608,120440.0,120430.0,2.71570944]
[1760028832084,0.3608,120440.0,120430.0,3.92461593]
[1760028832280,0.3608,120450.0,120440.0,0.1938173]
[1760028832480,0.3608,120450.0,120440.0,1.05758906]
[1760028832880,0.3608,120450.0,120440.0,1.87558906]
[1760028833889,0.40345,120490.0,120470.0,0.1528167]
[1760028834093,0.76753,120490.0,120480.0,0.06985]
[1760028834484,0.76753,120490.0,120480.0,0.15853524]
[1760028834683,0.3608,120500.0,120490.0,0.1528029]
[1760028834886,0.04265,120510.0,120490.0,0.99271463]
[1760028835083,0.07265,120510.0,120500.0,0.24148124]
[1760028835288,0.40345,120520.0,120510.0,0.06985]
[1760028835487,0.40345,120520.0,120510.0,0.15853524]
[1760028835488,0.70345,120520.0,120510.0,0.15853524]
[1760028835688,0.4308,120520.0,120510.0,1.05875434]
[1760028835990,0.3608,120520.0,120510.0,1.05875434]
[1760028836188,0.3608,120520.0,120510.0,1.44874083]
[1760028836389,0.3608,120520.0,120510.0,2.70426083]
[1760028836890,0.3618,120520.0,120510.0,3.52098083]
[1760028837390,0.3628,120520.0,120510.0,0.24147434]
[1760028837589,0.3628,120520.0,120510.0,3.52042083]
[1760028838492,0.002,120520.0,120510.0,3.90485083]
[1760028838691,0.002,120520.0,120510.0,3.08865083]
[1760028838990,0.002,120520.0,120510.0,3.90409083]
[1760028840092,0.002,120520.0,120510.0,4.30409083]
[1760028841185,0.002,120520.0,120510.0,3.48865083]
[1760028841382,0.002,120520.0,120510.0,3.84945083]
[1760028841585,0.05852221,120570.0,120510.0,3.84945083]
[1760028841586,0.40345,120580.0,120560.0,0.06985]
[1760028841786,0.74753,120580.0,120570.0,0.06985]
[1760028841994,0.74753,120580.0,120570.0,0.88537]
[1760028842395,0.74753,120580.0,120570.0,0.06985]
[1760028842891,0.75153,120580.0,120570.0,0.88513]
[1760028843282,0.75153,120580.0,120570.0,0.9678678]
[1760028843486,0.6328,120580.0,120570.0,0.9678678]
[1760028843687,0.6348,120580.0,120570.0,3.0394678]
[1760028843889,0.6348,120580.0,120570.0,3.02448626]
[1760028844089,0.6348,120580.0,120570.0,0.13776626]
[1760028844395,0.6348,120580.0,120570.0,3.02404626]
[1760028844689,1.62484749,120580.0,120570.0,0.06791626]
[1760028844894,1.62484749,120580.0,120570.0,0.81432]
[1760028845194,1.234421,120580.0,120570.0,0.81432]
[1760028845394,0.04265,120570.0,120560.0,2.0716]
[1760028845595,0.40345,120570.0,120560.0,2.88592]
[1760028845797,0.4863478,120570.0,120560.0,2.88592]
[1760028846092,0.04265,120560.0,120540.0,0.49697149]
[1760028846390,0.0829185,120540.0,120510.0,0.39394]
[1760028846584,0.0829185,120540.0,120520.0,2.88352]
[1760028846585,0.40345,120530.0,120520.0,2.88352]
[1760028846793,0.4863754,120530.0,120520.0,2.8854]
[1760028846992,0.1255754,120530.0,120520.0,2.8854]
[1760028847189,0.04265,120530.0,120520.0,2.8854]
[1760028847393,0.40345,120530.0,120520.0,0.06985]
[1760028847596,0.47753,120530.0,120520.0,2.14125]
[1760028847790,0.5604554,120530.0,120520.0,2.14125]
[1760028847993,0.5604554,120530.0,120520.0,2.95461]
[1760028848795,0.5614554,120530.0,120520.0,2.95425]
[1760028849195,0.5624554,120530.0,120520.0,2.95425]
[1760028849392,0.9624554,120530.0,120520.0,0.06659791]
[1760028849604,1.56264699,120530.0,120520.0,0.3304]
[1760028849787,0.49545,120530.0,120510.0,0.07023]
[1760028849988,0.40545,120530.0,120520.0,0.88267]
[1760028850186,0.47977,120530.0,120520.0,0.88291]
[1760028851599,0.5606954,120530.0,120520.0,0.88291]
[1760028851897,0.9606954,120530.0,120520.0,0.07023]
[1760028852299,0.9606954,120530.0,120520.0,0.94960276]
[1760028852988,0.9606954,120530.0,120520.0,0.06761276]
[1760028853190,0.1986319,120510.0,120500.0,0.07023]
[1760028853399,0.5594319,120510.0,120500.0,2.95299]
[1760028853795,0.04137,120480.0,120470.0,0.01551462]
[1760028853994,0.1243435,120460.0,120450.0,0.04496936]
[1760028854303,0.3943435,120460.0,120450.0,0.04496936]
[1760028854511,1.82613509,120460.0,120450.0,0.04496936]
[1760028855108,1.5159435,120460.0,120450.0,0.04496936]
[1760028855308,1.82613509,120460.0,120450.0,0.04496936]
[1760028855810,1.82613509,120460.0,120450.0,0.04696936]
[1760028856006,1.82613509,120460.0,120450.0,0.04896936]
[1760028857806,1.90045509,120460.0,120450.0,0.04896936]
[1760028859403,1.90045509,120460.0,120410.0,1.8102424]
[1760028859404,0.1780111,120420.0,120410.0,5.081e-05]
[1760028859609,0.08627,120450.0,120420.0,0.0429]
[1760028859805,0.3608,120430.0,120420.0,1.61313]
[1760028860109,0.54512,120430.0,120420.0,0.4342911]
[1760028860308,0.54518957,120430.0,120420.0,0.35129]
[1760028860510,0.36086957,120430.0,120420.0,1.9342911]
[1760028860713,0.36086957,120430.0,120420.0,1.85129]
[1760028861008,0.43518957,120430.0,120420.0,0.88800075]
[1760028861312,0.43518957,120430.0,120420.0,1.00101075]
[1760028861513,0.43518957,120430.0,120420.0,1.67957075]
[1760028861714,0.36086957,120430.0,120420.0,2.58405185]
[1760028861911,0.36086957,120430.0,120420.0,1.67957075]
[1760028862111,0.36086957,120430.0,120420.0,2.50065075]
[1760028862807,0.36086957,120430.0,120420.0,4.56257075]
[1760028863204,0.36086957,120430.0,120420.0,1.66957075]
[1760028863408,0.36086957,120430.0,120420.0,4.56229075]
[1760028863916,0.36086957,120430.0,120420.0,1.66957075]
[1760028864115,0.36086957,120430.0,120420.0,3.74193075]
[1760028864308,0.74538116,120430.0,120420.0,0.16957075]
[1760028864622,1.58917536,120430.0,120420.0,0.85660075]
[1760028864910,1.60986536,120430.0,120420.0,1.5]
[1760028865115,0.1573211,120420.0,120410.0,5.081e-05]
[1760028865306,0.82831269,120420.0,120410.0,5.081e-05]
[1760028865512,1.07157344,120420.0,120410.0,5.081e-05]
[1760028865714,1.04520075,120420.0,120410.0,0.81945081]
[1760028865914,0.64520075,120420.0,120410.0,0.88968081]
[1760028866112,0.64520075,120420.0,120410.0,0.07028081]
[1760028866420,1.27539234,120420.0,120410.0,5.081e-05]
[1760028866614,1.27539234,120420.0,120410.0,0.81917081]
[1760028867212,1.35839344,120420.0,120410.0,0.81881081]
[1760028867413,1.44539234,120420.0,120410.0,5.081e-05]
[1760028867616,1.44539234,120420.0,120410.0,0.81881081]
[1760028868522,1.44539234,120420.0,120410.0,0.81869081]
[1760028868710,1.26157344,120420.0,120410.0,5.081e-05]
[1760028868916,1.58157344,120420.0,120410.0,5.081e-05]
[1760028869118,1.58157344,120420.0,120410.0,0.81813081]
[1760028869918,0.87138185,120420.0,120410.0,0.81801081]
[1760028870124,1.18157344,120420.0,120410.0,0.81801081]
[1760028870615,1.58157344,120420.0,120410.0,5.081e-05]
[1760028870820,1.58157344,120420.0,120410.0,0.81753081]
[1760028871612,1.49857234,120420.0,120410.0,5.081e-05]
[1760028871816,1.58157344,120420.0,120410.0,0.81705081]
[1760028872021,1.58157344,120420.0,120410.0,5.081e-05]
[1760028872416,1.58157344,120420.0,120410.0,0.81645081]
[1760028872620,1.58157344,120420.0,120410.0,5.081e-05]
[1760028872621,1.06539234,120420.0,120410.0,5.081e-05]
[1760028872818,1.14839344,120420.0,120410.0,0.81633081]
[1760028873024,1.18157344,120420.0,120410.0,5.081e-05]
[1760028873227,1.18157344,120420.0,120410.0,0.81625081]
[1760028873525,1.18157344,120420.0,120410.0,5.081e-05]
[1760028873723,1.18157344,120420.0,120410.0,0.81629081]
[1760028873925,1.09857234,120420.0,120410.0,0.81629081]
[1760028874527,1.18157344,120420.0,120410.0,5.081e-05]
[1760028874822,0.07432,120390.0,120380.0,0.11313]
[1760028875022,0.43520291,120390.0,120380.0,2.42849]
[1760028875929,0.7660845,120390.0,120370.0,0.0429]
[1760028876122,0.43512,120380.0,120370.0,0.11313]
[1760028876424,0.43512,120380.0,120370.0,2.42813]
[1760028877230,0.74531159,120380.0,120370.0,2.42813]
[1760028877728,0.43512,120380.0,120370.0,2.42813]
[1760028877922,0.43512,120380.0,120370.0,2.42745]
[1760028878228,0.43512,120380.0,120370.0,2.5104856]
[1760028878425,0.43512,120380.0,120370.0,0.11313]
[1760028878625,0.43512,120380.0,120370.0,0.92713]
[1760028879132,0.43512,120380.0,120370.0,2.42713]
[1760028879428,0.43512,120380.0,120370.0,1.6961656]
[1760028879624,0.07108291,120390.0,120380.0,0.2017887]
[1760028879922,8.291e-05,120390.0,120380.0,1.4149487]
[1760028880118,8.291e-05,120390.0,120380.0,0.9625887]
[1760028880324,8.291e-05,120390.0,120380.0,2.08578029]
[1760028880519,8.291e-05,120390.0,120380.0,1.7755887]
[1760028880926,8.291e-05,120390.0,120380.0,1.7424887]
[1760028881322,8.291e-05,120390.0,120380.0,0.9294887]
[1760028881529,8.291e-05,120390.0,120380.0,1.7420487]
[1760028881922,8.291e-05,120390.0,120380.0,2.05224029]
[1760028882329,8.291e-05,120390.0,120380.0,1.65224029]
[1760028882628,8.291e-05,120390.0,120380.0,1.65208029]
[1760028882830,8.291e-05,120390.0,120380.0,1.3418887]
[1760028883030,0.07108291,120390.0,120380.0,0.11876]
[1760028883324,0.07108291,120390.0,120380.0,1.0137087]
[1760028883628,8.291e-05,120390.0,120380.0,1.4137087]
[1760028884227,8.291e-05,120390.0,120380.0,0.6017887]
[1760028884428,8.291e-05,120390.0,120380.0,1.4131487]
[1760028884630,8.291e-05,120390.0,120380.0,0.6017887]
[1760028884830,8.291e-05,120390.0,120380.0,1.4127087]
[1760028885532,8.291e-05,120390.0,120380.0,1.7733487]
[1760028885730,8.291e-05,120390.0,120380.0,0.9625887]
[1760028885928,8.291e-05,120390.0,120380.0,3.8465487]
[1760028886330,8.291e-05,120390.0,120380.0,2.59228]
[1760028886531,0.45257291,120390.0,120370.0,1.5429]
[1760028886835,0.43508,120380.0,120370.0,0.1992456]
[1760028887134,0.43508,120380.0,120370.0,1.0095656]
[1760028887531,0.07428,120380.0,120370.0,0.1992456]
[1760028887733,8.291e-05,120390.0,120380.0,0.2012387]
[1760028887928,0.43516291,120390.0,120380.0,0.11821]
[1760028888130,0.43516291,120390.0,120380.0,0.81012]
[1760028888526,0.43516291,120390.0,120380.0,0.8931487]
[1760028888937,0.43516291,120390.0,120380.0,0.0830287]
[1760028889138,0.43516291,120390.0,120380.0,0.8931087]
[1760028889434,0.43516291,120390.0,120380.0,0.0830287]
[1760028889732,0.43516291,120390.0,120380.0,0.6012387]
[1760028889937,0.07436291,120390.0,120380.0,1.4105587]
[1760028890237,0.43516291,120390.0,120380.0,1.4105587]
[1760028890535,8.291e-05,120390.0,120380.0,1.7713587]
[1760028890736,8.291e-05,120390.0,120380.0,1.7711987]
[1760028890933,8.291e-05,120390.0,120380.0,2.08139029]
[1760028891134,8.291e-05,120390.0,120380.0,4.15503029]
[1760028891739,8.291e-05,120390.0,120380.0,4.14503029]
[1760028892635,8.291e-05,120390.0,120380.0,5.64503029]
[1760028893837,8.291e-05,120390.0,120380.0,1.5]
[1760028894143,0.83644471,120390.0,120380.0,2.30788]
[1760028894535,0.72168291,120390.0,120380.0,2.30788]
[1760028894740,0.80470471,120390.0,120380.0,1.5449]
[1760028894939,0.80470471,120390.0,120380.0,2.3084]
[1760028895141,0.83644471,120390.0,120380.0,1.5]
[1760028895341,1.15644471,120390.0,120380.0,1.5]
[1760028895742,1.15644471,120390.0,120380.0,2.30812]
[1760028896945,1.12470471,120390.0,120380.0,2.3911487]
[1760028897244,1.12470471,120390.0,120380.0,2.3905487]
[1760028897840,1.07342291,120390.0,120380.0,1.5]
[1760028898046,1.10644471,120390.0,120380.0,2.30708]
[1760028898248,1.07470471,120390.0,120380.0,2.30708]
[1760028898543,1.10644471,120390.0,120380.0,1.5]
[1760028898742,1.10644471,120390.0,120380.0,2.30684]
[1760028899744,1.10644471,120390.0,120380.0,2.3898687]
[1760028900140,1.10644471,120390.0,120380.0,2.30684]
[1760028900345,1.10644471,120390.0,120380.0,1.5830287]
[1760028900546,1.10644471,120390.0,120380.0,2.3890287]
[1760028900946,1.4166363,120390.0,120380.0,2.306]
[1760028901452,1.10644471,120390.0,120380.0,2.3890287]
[1760028901952,1.07470471,120390.0,120380.0,1.5830287]
[1760028902144,1.07470471,120390.0,120380.0,2.3509]
[1760028902343,1.07570471,120390.0,120380.0,2.306]
[1760028902541,0.07428,120380.0,120370.0,0.11821]
[1760028902745,0.43508,120380.0,120370.0,0.2012456]
[1760028903054,0.43508,120380.0,120370.0,1.0061256]
[1760028903350,0.5181087,120380.0,120370.0,1.0061256]
[1760028903541,0.5181087,120380.0,120370.0,0.87819]
[1760028903743,0.5181087,120380.0,120370.0,0.92289]
[1760028904642,0.5201087,120380.0,120370.0,1.0059256]
[1760028904841,0.43708,120380.0,120370.0,0.11821]
[1760028905045,0.43708,120380.0,120370.0,0.92285]
[1760028905446,0.3628,120380.0,120370.0,1.32285]
[1760028906049,0.4458287,120380.0,120370.0,1.4272726]
[1760028906249,0.5201087,120380.0,120370.0,0.6226326]
[1760028906448,0.5201087,120380.0,120370.0,1.32197]
[1760028906654,0.5201087,120380.0,120370.0,0.51821]
[1760028906853,0.5191087,120380.0,120370.0,0.92173]
[1760028907648,0.5181087,120380.0,120370.0,0.92185]
[1760028908041,0.5181087,120380.0,120370.0,0.11821]
[1760028908243,0.1890556,120370.0,120360.0,0.1044226]
[1760028908444,0.94121072,120370.0,120360.0,2.30324]
[1760028908647,0.5498556,120370.0,120360.0,1.5]
[1760028908851,0.1573225,120360.0,120350.0,0.29708899]
[1760028909048,0.51819616,120360.0,120350.0,1.10004899]
[1760028909353,0.51819616,120360.0,120350.0,1.5083826]
[1760028909354,1.22129128,120360.0,120350.0,1.5083826]
[1760028909547,0.82993616,120360.0,120350.0,2.3111426]
[1760028909748,0.79819616,120360.0,120350.0,2.3111426]
[1760028910353,0.82708616,120360.0,120350.0,1.5083826]
[1760028910563,1.21844128,120360.0,120350.0,2.3111026]
[1760028910851,1.21944128,120360.0,120350.0,1.5083826]
[1760028911053,1.21944128,120360.0,120350.0,2.3111026]
[1760028911649,1.22044128,120360.0,120350.0,2.3111026]
[1760028911946,1.22044128,120360.0,120350.0,2.3107026]
[1760028912545,1.22044128,120360.0,120350.0,2.4149588]
[1760028913351,1.62044128,120360.0,120350.0,1.5083826]
[1760028913549,1.62044128,120360.0,120350.0,2.3101826]
[1760028913751,1.62044128,120360.0,120350.0,2.4145988]
[1760028913954,0.82908616,120360.0,120350.0,2.4145988]
[1760028914146,0.82908616,120360.0,120350.0,2.3101826]
[1760028915549,0.43715366,120360.0,120350.0,2.02363712]
[1760028915748,0.43715366,120360.0,120350.0,3.22475712]
[1760028915949,0.52019616,120360.0,120350.0,1.6536488]
[1760028916144,0.52019616,120360.0,120350.0,2.4548088]
[1760028916353,0.43715366,120360.0,120350.0,2.92921332]
[1760028916554,0.00207366,120360.0,120350.0,2.52805332]
[1760028916752,0.00207366,120360.0,120350.0,3.32894057]
[1760028917150,0.00207366,120360.0,120350.0,3.22467712]
[1760028917654,0.08511616,120360.0,120350.0,3.14162772]
[1760028918065,0.00207366,120360.0,120350.0,2.7502726]
[1760028918249,0.00207366,120360.0,120350.0,3.14110772]
[1760028918453,0.00207366,120360.0,120350.0,2.34058772]
[1760028918750,0.08511616,120360.0,120350.0,2.34058772]
[1760028918958,0.08511616,120360.0,120350.0,3.14082772]
[1760028919254,0.08511616,120360.0,120350.0,3.24509117]
[1760028919255,0.44591616,120360.0,120350.0,3.24509117]
[1760028919656,0.08511616,120360.0,120350.0,3.14082772]
[1760028919957,0.44591616,120360.0,120350.0,3.14082772]
[1760028920157,0.44591616,120360.0,120350.0,2.74082772]
[1760028920455,0.44591616,120360.0,120350.0,1.94058772]
[1760028920647,0.47765616,120360.0,120350.0,1.5083826]
[1760028920956,0.79765616,120360.0,120350.0,2.3081826]
[1760028921155,0.76591616,120360.0,120350.0,2.3081826]
[1760028921557,0.76591616,120360.0,120350.0,2.3490326]
[1760028922957,0.76591616,120360.0,120350.0,2.45332078]
[1760028923756,0.79765616,120360.0,120350.0,2.3081826]
[1760028924059,0.76591616,120360.0,120350.0,2.3081826]
[1760028924952,0.79765616,120360.0,120350.0,2.3081826]
[1760028925352,1.58901128,120360.0,120350.0,2.41254281]
[1760028925550,1.19765616,120360.0,120350.0,2.56127955]
[1760028925754,0.76591616,120360.0,120350.0,1.69796934]
[1760028925957,0.76591616,120360.0,120350.0,2.49592934]
[1760028926354,0.76591616,120360.0,120350.0,2.3471926]
[1760028926759,0.76591616,120360.0,120350.0,2.84242971]
[1760028927161,0.76591616,120360.0,120350.0,2.45107459]
[1760028927859,0.76591616,120360.0,120350.0,2.84242971]
[1760028928063,0.76591616,120360.0,120350.0,2.49544934]
[1760028928861,0.76591616,120360.0,120350.0,2.3467126]
[1760028929558,0.76591616,120360.0,120350.0,2.3457526]
[1760028930460,0.76591616,120360.0,120350.0,1.5492326]
[1760028930655,1.19765616,120360.0,120350.0,1.5083826]
[1760028930860,1.19765616,120360.0,120350.0,2.3048626]
[1760028931055,1.19765616,120360.0,120350.0,1.5083826]
[1760028931359,1.65981128,120360.0,120350.0,1e-07]
[1760028931656,1.65981128,120360.0,120350.0,0.7962401]
[1760028931857,0.86845616,120360.0,120350.0,0.8681401]
[1760028932061,0.83671616,120360.0,120350.0,0.1127901]
[1760028932262,0.83671616,120360.0,120350.0,0.9089901]
[1760028933164,0.83671616,120360.0,120350.0,0.1127901]
[1760028933364,0.83671616,120360.0,120350.0,0.9085901]
[1760028934065,0.83671616,120360.0,120350.0,0.9083501]
[1760028934865,0.86845616,120360.0,120350.0,0.7954401]
[1760028935161,0.86845616,120360.0,120350.0,0.7950801]
[1760028935861,0.86845616,120360.0,120350.0,0.7950001]
[1760028936062,0.83671616,120360.0,120350.0,0.8669401]
[1760028936465,0.83671616,120360.0,120350.0,0.9077901]
[1760028937567,1.65981128,120360.0,120350.0,0.1044813]
[1760028937766,1.26845616,120360.0,120350.0,0.1044813]
[1760028937968,1.26845616,120360.0,120320.0,0.02104444]
[1760028937969,1.61231971,120360.0,120320.0,0.02104444]
[1760028938157,0.0830977,120280.0,120270.0,0.04085003]
[1760028938365,0.7730977,120280.0,120270.0,0.78735447]
[1760028938674,0.7216,120280.0,120270.0,0.52518959]
[1760028938862,0.4438908,120290.0,120280.0,0.11279]
[1760028939060,0.72399364,120290.0,120280.0,0.11279]
[1760028939262,0.64090284,120290.0,120280.0,0.97163444]
[1760028939858,0.64090284,120290.0,120280.0,0.13383444]
[1760028940064,0.72399364,120290.0,120280.0,0.13383444]
[1760028940265,0.64090284,120290.0,120280.0,0.13645444]
[1760028940464,0.64090284,120290.0,120280.0,0.97409444]
[1760028940665,0.36090284,120290.0,120280.0,0.92780956]
[1760028940866,0.36090284,120290.0,120280.0,1.37361444]
[1760028941066,0.36090284,120290.0,120280.0,0.53645444]
[1760028941263,0.36090284,120290.0,120280.0,1.37341444]
[1760028941464,0.36090284,120290.0,120280.0,1.76476956]
[1760028941659,0.36090284,120290.0,120280.0,1.37341444]
[1760028941965,0.36090284,120290.0,120280.0,1.76476956]
[1760028942364,0.44399364,120290.0,120280.0,1.34372512]
[1760028942565,0.36090284,120290.0,120280.0,1.76480956]
[1760028942768,0.36090284,120290.0,120280.0,1.34376512]
[1760028942965,0.00010284,120290.0,120280.0,1.34264512]
[1760028943167,0.33975556,120310.0,120300.0,0.11789]
[1760028943361,0.33975556,120310.0,120300.0,1.34492512]
[1760028943565,0.33975556,120310.0,120300.0,1.74492512]
[1760028943767,0.4438747,120320.0,120300.0,0.50924512]
[1760028944073,0.4438747,120320.0,120310.0,0.95345]
[1760028944270,0.36085935,120320.0,120310.0,1.01969897]
[1760028944971,0.36085935,120320.0,120310.0,0.18413897]
[1760028945164,0.00105935,120320.0,120310.0,1.05857109]
[1760028945474,0.00105935,120320.0,120310.0,2.25421109]
[1760028945773,5.935e-05,120320.0,120310.0,1.41937109]
[1760028945970,0.00205935,120320.0,120310.0,1.41937109]
[1760028946164,0.00205935,120320.0,120310.0,2.25361109]
[1760028946377,0.00205935,120320.0,120310.0,1.41937109]
[1760028946569,0.3608,120340.0,120330.0,0.1958832]
[1760028946765,0.3608,120350.0,120340.0,0.04143]
[1760028946973,0.4438494,120350.0,120340.0,0.04143]
[1760028947367,0.4438494,120350.0,120340.0,0.87527]
[1760028947569,0.4438494,120350.0,120340.0,0.04143]
[1760028947972,0.4438494,120350.0,120340.0,0.87475]
[1760028948173,0.4438494,120350.0,120340.0,0.94614]
[1760028948375,0.4448494,120350.0,120340.0,0.94614]
[1760028948570,0.083077,120310.0,120300.0,0.04143]
[1760028948775,0.7216,120310.0,120300.0,1.00221512]
[1760028948972,0.4438701,120320.0,120310.0,0.11282]
[1760028949169,0.7138701,120320.0,120310.0,0.50417512]
[1760028949363,0.4438701,120320.0,120310.0,1.33921512]
[1760028949572,0.4438701,120320.0,120310.0,1.33941512]
[1760028949962,0.4438701,120320.0,120310.0,3.41377512]
[1760028950168,0.4438701,120320.0,120310.0,3.41357512]
[1760028950772,0.4448701,120320.0,120310.0,3.41313512]
[1760028951667,0.001,120320.0,120310.0,2.57877512]
[1760028951864,0.001,120320.0,120310.0,2.97877512]
[1760028952072,0.001,120320.0,120310.0,3.89533212]
[1760028952270,0.3608,120340.0,120330.0,0.0830632]
[1760028952470,0.3608,120350.0,120340.0,0.04143]
[1760028952678,0.6108,120350.0,120340.0,0.50417512]
[1760028953173,0.0830597,120340.0,120320.0,0.04143]
[1760028953366,0.7638597,120340.0,120330.0,0.04143]
[1760028953576,1.5246597,120340.0,120330.0,1.26906512]
[1760028953866,0.8716,120340.0,120330.0,0.43278512]
[1760028954071,0.9546563,120340.0,120330.0,0.43278512]
[1760028954270,0.9556563,120340.0,120330.0,3.34322512]
[1760028954671,0.9556563,120340.0,120330.0,0.43278512]
[1760028954869,0.9546563,120340.0,120330.0,2.50742512]
[1760028955076,0.9556563,120340.0,120330.0,3.34274512]
[1760028955271,0.9556563,120340.0,120330.0,0.43278512]
[1760028955478,0.9556563,120340.0,120330.0,3.34274512]
[1760028956187,0.9556563,120340.0,120330.0,2.50742512]
[1760028956388,0.9556563,120340.0,120330.0,3.34250512]
[1760028956389,0.8736,120340.0,120330.0,3.34250512]
[1760028956690,0.8736,120340.0,120330.0,3.42556832]
[1760028956892,0.7226,120340.0,120330.0,3.42556832]
[1760028957285,0.7226,120340.0,120330.0,2.59048832]
[1760028957584,0.7226,120340.0,120330.0,3.34118512]